bitfinex-derivatives/quotes_SOLF0:USTF0_20241017
["timestamp","ask_amount","ask_price","bid_price","bid_amount"]
[1729129809327,3.216,155.48,155.43,22.25]
[1729129809524,1.03342942,155.47,155.43,22.25]
[1729129809731,7.15342942,155.47,155.41,3.14240829]
[1729129810024,1.03342942,155.46,155.38,22.25]
[1729129810223,1.03342942,155.45,155.38,25.41815255]
[1729129810432,4.1847,155.53,155.42,22.25]
[1729129810623,7.15345677,155.52,155.42,22.25]
[1729129810929,1.03345677,155.51,155.42,22.25]
[1729129811127,1.03345677,155.51,155.4,22.25]
[1729129811522,1.03345677,155.51,155.43,22.25]
[1729129812227,3.2161,155.48,155.43,22.25]
[1729129812429,6.12,155.52,155.43,22.25]
[1729129812723,1.03335158,155.51,155.38,3.16815255]
[1729129812922,23.28335158,155.51,155.37,22.25]
[1729129813127,1.03335158,155.5,155.37,22.25]
[1729129813730,3.2173,155.42,155.37,22.25]
[1729129814330,3.2175,155.41,155.37,22.25]
[1729129815419,6.12,155.45,155.38,3.16631267]
[1729129815619,3.2182,155.38,155.33,25.469]
[1729129815823,6.12,155.41,155.33,25.469]
[1729129816028,6.12,155.41,155.35,22.25]
[1729129816219,6.12,155.44,155.35,22.25]
[1729129816429,1.03373598,155.43,155.38,22.25]
[1729129816625,6.12,155.44,155.38,22.25]
[1729129817632,3.2174,155.41,155.39,3.24644397]
[1729129817935,3.2174,155.41,155.38,22.25]
[1729129818330,3.2171,155.43,155.38,22.25]
[1729129818525,6.12,155.48,155.38,25.43260813]
[1729129818832,1.03358403,155.47,155.38,25.43260813]
[1729129819138,1.03358403,155.47,155.38,28.65050813]
[1729129819633,3.2169,155.44,155.38,25.43260813]
[1729129819832,3.2169,155.44,155.39,3.2178]
[1729129820537,3.217,155.43,155.39,3.2178]
[1729129820834,3.217,155.43,155.38,25.43260813]
[1729129821031,3.217,155.43,155.38,28.65060813]
[1729129821232,3.2168,155.44,155.38,25.43260813]
[1729129821742,3.2168,155.44,155.39,3.2178]
[1729129822035,6.12,155.48,155.38,25.43260813]
[1729129822231,1.03358081,155.47,155.39,3.2178]
[1729129822737,3.2168,155.44,155.39,3.2178]
[1729129823141,6.12,155.48,155.38,25.43260813]
[1729129823334,1.03358833,155.47,155.38,25.43260813]
[1729129823732,1.03358833,155.47,155.38,3.18260813]
[1729129824035,1.03364378,155.46,155.36,7.5446]
[1729129824337,28.37,155.48,155.36,10.82247667]
[1729129824338,1.03364378,155.45,155.36,10.82247667]
[1729129824534,7.33364378,155.44,155.36,10.82247667]
[1729129824734,3.2177,155.4,155.36,10.82247667]
[1729129825032,6.3,155.44,155.36,10.82247667]
[1729129825234,1.03352537,155.43,155.36,4.70247667]
[1729129825435,3.2182,155.37,155.36,4.70247667]
[1729129826233,14.53278081,155.38,155.36,4.70247667]
[1729129826433,14.53278081,155.37,155.36,4.70247667]
[1729129827231,11.29257855,155.37,155.36,1.4246]
[1729129827437,11.29257855,155.37,155.36,4.70054548]
[1729129827637,11.29257855,155.37,155.36,1.4246]
[1729129828243,11.29257855,155.37,155.36,4.65440366]
[1729129830243,11.29257855,155.37,155.36,7.87280366]
[1729129832141,9.39257855,155.37,155.36,4.64056395]
[1729129832348,12.61077855,155.37,155.36,4.64056395]
[1729129832849,12.61077855,155.37,155.36,3.21596395]
[1729129833050,9.39257855,155.37,155.33,22.25]
[1729129833251,3.2187,155.35,155.33,25.43538783]
[1729129833848,3.2189,155.34,155.33,3.18538783]
[1729129834054,3.2189,155.34,155.31,1.4179]
[1729129834352,3.2189,155.34,155.31,4.6373]
[1729129834548,3.2189,155.34,155.31,7.78797611]
[1729129836754,6.3,155.4,155.31,4.56857611]
[1729129836953,3.2188,155.35,155.31,4.56857611]
[1729129837151,6.3,155.4,155.33,22.25]
[1729129837558,3.2185,155.36,155.33,25.469]
[1729129839560,3.2183,155.37,155.34,3.2188]
[1729129840254,3.2187,155.35,155.33,22.25]
[1729129842560,6.3,155.4,155.33,22.25]
[1729129842859,3.2185,155.36,155.33,25.4689]
[1729129843455,6.3,155.4,155.33,22.25]
[1729129843758,3.2189,155.34,155.33,22.25]
[1729129844259,6.3,155.4,155.31,4.56857611]
[1729129844463,1.03303915,155.39,155.31,4.56857611]
[1729129844668,3.219,155.34,155.31,7.78787611]
[1729129845762,3.2186,155.36,155.33,3.2189]
[1729129845957,6.3,155.4,155.31,4.56857611]
[1729129846262,3.2187,155.35,155.32,3.2191]
[1729129847361,3.2187,155.35,155.31,4.56857611]
[1729129847560,3.2187,155.35,155.32,3.2192]
[1729129848571,95.47035487,155.63,155.35,3.2185]
[1729129848572,5.96,155.42,155.35,3.2185]
[1729129848769,5.96,155.42,155.35,22.25]
[1729129848963,15.72320818,155.45,155.38,22.25]
[1729129848964,3.217,155.43,155.38,22.25]
[1729129849264,12.62420818,155.49,155.4,22.25]
[1729129849464,22.25,155.54,155.42,3.2171]
[1729129849465,3.2164,155.46,155.42,3.2171]
[1729129849860,5.96,155.51,155.42,3.2171]
[1729129850064,1.03338892,155.5,155.41,7.3982]
[1729129850260,1.03338892,155.5,155.43,22.25]
[1729129850460,22.25,155.61,155.48,22.25]
[1729129850663,1.4194,155.59,155.51,22.25]
[1729129850970,1.3824,155.65,155.54,22.25]
[1729129851173,1.3824,155.65,155.51,5.96]
[1729129851174,5.96,155.68,155.57,3.2141]
[1729129851359,2.8018,155.73,155.57,3.2141]
[1729129851563,22.25,155.71,155.56,28.21]
[1729129851759,3.2127,155.64,155.58,3.2137]
[1729129852071,5.96,155.67,155.57,1.3277]
[1729129852266,5.96,155.66,155.56,3.21883465]
[1729129852466,5.96,155.66,155.56,22.25]
[1729129852673,1.03235825,155.65,155.56,25.46979962]
[1729129852872,3.2131,155.62,155.56,25.46979962]
[1729129853076,5.96,155.66,155.56,25.46979962]
[1729129853277,1.0323081,155.65,155.56,25.46979962]
[1729129853876,1.03229048,155.64,155.56,25.46979962]
[1729129854068,5.96,155.66,155.56,25.46979962]
[1729129854270,3.2131,155.62,155.56,28.68409962]
[1729129854474,5.96,155.66,155.56,25.46979962]
[1729129854773,1.03233122,155.65,155.56,25.46979962]
[1729129855267,3.2129,155.63,155.56,25.46979962]
[1729129855475,5.96,155.66,155.56,25.46979962]
[1729129855877,1.4347,155.65,155.56,3.21979962]
[1729129856071,1.4347,155.65,155.54,28.21]
[1729129856281,3.2141,155.58,155.51,31.4252]
[1729129856479,5.96,155.62,155.51,28.21]
[1729129856669,1.3145,155.61,155.51,28.21]
[1729129856871,3.2142,155.57,155.51,28.21]
[1729129857173,3.2142,155.57,155.51,31.44442615]
[1729129857480,1.3145,155.61,155.51,25.48442615]
[1729129857784,1.3145,155.61,155.51,3.23442615]
[1729129858077,3.2142,155.57,155.49,29.3385]
[1729129858381,5.96,155.6,155.49,32.57999945]
[1729129858870,5.96,155.6,155.49,35.79559945]
[1729129859476,3.2145,155.56,155.5,3.2154]
[1729129859666,14.16141448,155.55,155.49,32.57999945]
[1729129859870,14.16141448,155.54,155.49,32.57999945]
[1729129860076,14.16141448,155.59,155.49,32.57999945]
[1729129860273,14.16141448,155.58,155.52,22.25]
[1729129860468,3.2145,155.56,155.52,25.53146759]
[1729129860673,5.96,155.6,155.52,25.53146759]
[1729129860878,5.96,155.6,155.52,3.28146759]
[1729129861065,5.96,155.6,155.5,3.2154]
[1729129861265,5.96,155.6,155.5,6.44766969]
[1729129861470,5.96,155.6,155.5,3.2154]
[1729129861982,5.96,155.6,155.5,3.24481033]
[1729129862174,5.96,155.6,155.49,31.4257]
[1729129862374,5.96,155.6,155.49,31.41300819]
[1729129862677,3.2144,155.56,155.5,3.2155]
[1729129862876,5.96,155.6,155.54,22.25]
[1729129863381,1.03249718,155.59,155.54,25.4647]
[1729129863580,1.03249718,155.59,155.54,22.25]
[1729129864276,7.2745,155.61,155.54,22.25]
[1729129864576,3.2139,155.58,155.54,22.25]
[1729129864974,7.2745,155.61,155.54,22.25]
[1729129865169,7.2745,155.61,155.49,31.41300819]
[1729129865170,1.03250965,155.6,155.49,3.20300819]
[1729129865378,1.03250965,155.6,155.48,25.032]
[1729129865673,1.03250965,155.6,155.48,28.24605594]
[1729129865984,1.03250965,155.6,155.48,25.46405594]
[1729129866286,1.03250965,155.59,155.48,25.46405594]
[1729129866474,29.5245,155.61,155.48,25.46405594]
[1729129866674,1.03285738,155.6,155.48,25.46405594]
[1729129866875,3.2142,155.57,155.48,25.46405594]
[1729129867175,6.99285738,155.56,155.5,22.25]
[1729129867374,23.5645,155.61,155.5,22.25]
[1729129867375,5.96,155.58,155.5,22.25]
[1729129867575,1.03275484,155.57,155.5,22.25]
[1729129868075,3.215,155.53,155.5,22.25]
[1729129868281,5.96,155.58,155.49,1.4324]
[1729129868474,2.34240223,155.57,155.49,1.4324]
[1729129868675,1.03280223,155.56,155.49,1.4324]
[1729129869071,3.215,155.53,155.49,1.4324]
[1729129869586,1.3096,155.57,155.49,1.4324]
[1729129869775,3.2149,155.54,155.49,4.6481]
[1729129870082,1.3096,155.57,155.49,1.4324]
[1729129870281,1.3096,155.57,155.48,25.46405594]
[1729129870282,3.2148,155.54,155.48,3.21405594]
[1729129870583,2.41272554,155.56,155.47,164.86799]
[1729129870584,1.03287466,155.53,155.47,164.86799]
[1729129870885,4.24817466,155.52,155.47,168.04158834]
[1729129871082,19.97463545,155.58,155.51,22.25]
[1729129871283,5.96,155.6,155.51,22.25]
[1729129871483,3.2141,155.57,155.51,22.25]
[1729129871981,5.96,155.6,155.52,3.215]
[1729129872186,3.2141,155.57,155.51,22.25]
[1729129872378,1.02464202,155.56,155.51,22.25]
[1729129872581,1.02464202,155.55,155.52,3.2151]
[1729129872777,1.02464202,155.54,155.52,3.2151]
[1729129872978,1.02464202,155.53,155.52,3.2151]
[1729129873177,1.02464202,155.55,155.52,3.2151]
[1729129873374,1.02464202,155.54,155.52,3.2151]
[1729129873576,3.2143,155.56,155.52,3.2151]
[1729129873782,1.02459236,155.55,155.51,22.25]
[1729129873974,5.96,155.62,155.54,22.25]
[1729129874287,1.333,155.63,155.57,22.25]
[1729129874479,1.0243852,155.6,155.57,25.39585446]
[1729129874781,1.0244517,155.59,155.54,22.25]
[1729129874984,1.02447727,155.59,155.54,22.25]
[1729129875179,3.2141,155.57,155.54,22.25]
[1729129875378,1.02447727,155.56,155.54,22.25]
[1729129876187,1.02447727,155.55,155.54,22.25]
[1729129876377,2.38717727,155.62,155.54,22.25]
[1729129876576,1.02447727,155.61,155.54,22.25]
[1729129876780,1.02447727,155.6,155.55,3.22092258]
[1729129876982,1.02447727,155.59,155.55,3.22092258]
[1729129877178,1.02447727,155.58,155.55,3.22092258]
[1729129877381,3.2145,155.56,155.55,3.22092258]
[1729129877593,4.23897727,155.56,155.55,3.22092258]
[1729129878077,1.02447727,155.56,155.55,3.22092258]
[1729129878280,1.02456116,155.56,155.54,22.25]
[1729129878584,1.02456116,155.55,155.54,22.25]
[1729129878787,3.2136,155.6,155.54,22.25]
[1729129879085,1.3627,155.62,155.54,22.25]
[1729129879475,1.3627,155.62,155.54,25.4646]
[1729129879684,1.3627,155.62,155.54,22.25]
[1729129880086,3.2136,155.6,155.55,3.2144]
[1729129880283,8.6403,155.64,155.56,22.25]
[1729129880589,3.2136,155.6,155.56,25.4642]
[1729129880889,3.2136,155.6,155.56,22.25]
[1729129881079,3.2136,155.6,155.56,25.40457211]
[1729129881487,3.2137,155.59,155.56,25.40457211]
[1729129881786,8.6403,155.64,155.56,25.40457211]
[1729129881981,1.3327,155.67,155.59,22.25]
[1729129882188,5.84,155.66,155.59,22.25]
[1729129882387,1.3327,155.67,155.57,1.436]
[1729129882595,1.3327,155.67,155.59,22.25]
[1729129882979,3.2128,155.64,155.59,25.4636]
[1729129883294,5.84,155.68,155.61,22.25]
[1729129884486,2.7125,155.69,155.61,22.25]
[1729129885287,3.2129,155.63,155.59,28.09]
[1729129885485,5.84,155.68,155.59,22.25]
[1729129886691,5.84,155.68,155.57,1.436]
[1729129888194,5.84,155.68,155.57,4.65]
[1729129888784,3.213,155.63,155.57,4.65]
[1729129888985,5.84,155.67,155.57,4.65]
[1729129889489,3.2131,155.63,155.57,4.65]
[1729129889694,5.84,155.67,155.57,4.65]
[1729129889886,5.84,155.67,155.57,1.436]
[1729129890081,5.84,155.67,155.56,3.15457211]
[1729129890392,3.2138,155.59,155.54,28.09]
[1729129890595,5.84,155.63,155.54,22.25]
[1729129890793,5.84,155.63,155.52,8.3834]
[1729129890794,7.2424,155.62,155.52,1.4161]
[1729129890985,9.9964,155.62,155.48,23.5994]
[1729129891295,9.9964,155.62,155.48,22.25]
[1729129891296,22.25,155.6,155.48,22.25]
[1729129891490,22.25,155.58,155.47,173.88158834]
[1729129891689,5.84,155.57,155.47,173.88158834]
[1729129892883,3.2153,155.52,155.47,173.88158834]
[1729129893099,5.84,155.57,155.47,173.88158834]
[1729129893100,5.84,155.57,155.47,168.04158834]
[1729129893597,3.2152,155.52,155.47,168.04158834]
[1729129893890,5.84,155.57,155.47,168.04158834]
[1729129894697,5.84,155.57,155.48,22.25]
[1729129895794,3.2149,155.53,155.48,25.4658]
[1729129896294,3.2149,155.53,155.48,22.25]
[1729129897495,3.2139,155.58,155.5,3.2155]
[1729129897693,5.86,155.58,155.5,3.2155]
[1729129897893,5.86,155.58,155.51,22.25]
[1729129898192,5.86,155.58,155.51,23.6657]
[1729129898387,73.5964,155.62,155.53,22.25]
[1729129898388,5.86,155.61,155.53,22.25]
[1729129898994,3.2137,155.59,155.54,3.2147]
[1729129901603,5.86,155.61,155.56,22.25]
[1729129901805,3.2133,155.61,155.56,25.41079955]
[1729129902096,4.0576,155.68,155.56,25.41079955]
[1729129902300,5.84,155.67,155.58,22.25]
[1729129902497,5.84,155.67,155.59,1.355]
[1729129903302,3.2126,155.65,155.59,5.9665]
[1729129903493,5.84,155.67,155.59,2.7528]
[1729129904192,3.2126,155.65,155.59,5.9664]
[1729129904594,69.44,155.71,155.61,22.25]
[1729129904802,3.2122,155.67,155.62,3.213]
[1729129905010,5.84,155.69,155.63,22.25]
[1729129905306,3.212,155.68,155.63,22.25]
[1729129905801,3.212,155.68,155.63,25.4628]
[1729129906396,3.2123,155.66,155.63,22.25]
[1729129906601,5.84,155.72,155.63,22.25]
[1729129906903,22.25,155.77,155.64,5.84]
[1729129907104,6.86403805,155.76,155.69,22.25]
[1729129907298,5.84,155.77,155.69,25.44098804]
[1729129907600,1.02372501,155.76,155.69,25.44098804]
[1729129908101,3.2109,155.73,155.69,25.44098804]
[1729129908301,5.84,155.77,155.69,25.44098804]
[1729129908701,3.2105,155.75,155.69,25.44098804]
[1729129908898,5.84,155.77,155.69,28.65258804]
[1729129909296,3.2108,155.74,155.69,28.65258804]
[1729129910008,5.84,155.77,155.69,25.44098804]
[1729129910708,3.211,155.73,155.69,25.44098804]
[1729129912911,3.2111,155.72,155.69,25.44098804]
[1729129915308,5.84,155.77,155.69,25.44098804]
[1729129915503,5.84,155.77,155.69,22.25]
[1729129915812,5.84,155.77,155.69,25.53987026]
[1729129916012,3.2109,155.73,155.69,25.53987026]
[1729129916312,5.84,155.77,155.69,25.53987026]
[1729129916510,3.2114,155.71,155.69,3.28987026]
[1729129916713,3.2114,155.71,155.68,2.8334]
[1729129916902,5.84,155.77,155.68,2.8334]
[1729129917107,3.2114,155.7,155.68,1.3934]
[1729129917303,22.25,155.76,155.68,3.20088539]
[1729129917503,1.0238379,155.75,155.65,5.76]
[1729129917707,1.0238379,155.75,155.65,9.04183913]
[1729129917909,13.87,155.75,155.65,17.15183913]
[1729129918710,3.2118,155.69,155.65,17.15183913]
[1729129919306,5.76,155.73,155.65,17.15183913]
[1729129919307,3.2119,155.68,155.65,17.15183913]
[1729129919611,5.76,155.73,155.65,17.15183913]
[1729129919816,5.76,155.73,155.65,25.50183913]
[1729129920717,3.2113,155.71,155.65,25.50183913]
[1729129920904,22.22,155.7,155.56,3.16079955]
[1729129921210,22.22,155.7,155.51,5.76]
[1729129921211,3.2132,155.62,155.55,3.2145]
[1729129921415,3.2132,155.62,155.56,1.3687]
[1729129921717,3.2132,155.62,155.56,23.5887]
[1729129921915,3.2132,155.62,155.56,26.8029]
[1729129922112,3.213,155.63,155.56,23.5887]
[1729129922313,5.76,155.65,155.56,23.5887]
[1729129924616,5.76,155.65,155.56,1.3687]
[1729129925113,23.5863,155.64,155.53,5.76]
[1729129925324,3.2143,155.57,155.53,5.76]
[1729129925610,5.76,155.61,155.51,22.22]
[1729129925815,5.76,155.61,155.51,27.98]
[1729129926513,1.344,155.69,155.56,22.22]
[1729129926710,1.344,155.69,155.59,22.22]
[1729129926911,3.213,155.63,155.59,22.22]
[1729129927311,5.76,155.68,155.59,22.22]
[1729129927520,5.76,155.68,155.59,25.50041286]
[1729129927721,3.2128,155.64,155.59,25.50041286]
[1729129927917,5.76,155.68,155.59,25.50041286]
[1729129929022,3.2128,155.64,155.59,25.50041286]
[1729129929822,5.76,155.68,155.59,3.28041286]
[1729129930129,5.76,155.67,155.57,2.8382]
[1729129930530,5.76,155.67,155.57,6.12365513]
[1729129930731,3.2131,155.62,155.57,6.0523]
[1729129930920,5.76,155.67,155.57,5.98673438]
[1729129931524,5.76,155.67,155.57,4.53593438]
[1729129931725,23.24443954,155.66,155.57,3.14853438]
[1729129931924,3.2139,155.58,155.52,27.98]
[1729129932128,5.76,155.61,155.52,27.98]
[1729129932626,3.2142,155.57,155.52,31.195]
[1729129932827,5.76,155.61,155.52,31.195]
[1729129933027,22.22,155.58,155.36,226.0]
[1729129933233,7.1223,155.57,155.44,23.6188]
[1729129933530,1.3623,155.57,155.47,190.26158834]
[1729129933725,3.2149,155.54,155.49,3.2157]
[1729129934029,5.76,155.56,155.47,190.26158834]
[1729129934430,3.2149,155.53,155.48,3.2158]
[1729129935533,5.76,155.56,155.47,168.04158834]
[1729129935738,22.22,155.55,155.47,168.04158834]
[1729129935933,22.22,155.5,155.47,162.68759]
[1729129936136,6.28,155.49,155.47,162.68759]
[1729129936433,3.216,155.48,155.47,162.68759]
[1729129936638,22.22,155.55,155.47,162.68759]
[1729129936838,6.28,155.54,155.47,162.68759]
[1729129937638,3.216,155.48,155.47,162.68759]
[1729129939234,6.28,155.51,155.47,162.68759]
[1729129940640,3.216,155.48,155.47,162.68759]
[1729129945538,3.216,155.48,155.47,151.03379]
[1729129945937,26.3274,155.5,155.4,3.18005927]
[1729129946133,22.22,155.48,155.37,1.3664]
[1729129946338,22.22,155.45,155.36,3.21674483]
[1729129946534,6.28,155.44,155.34,4.346]
[1729129946839,6.28,155.44,155.34,26.52027959]
[1729129947246,6.28,155.44,155.37,3.2182]
[1729129947543,6.28,155.44,155.34,4.30027959]
[1729129947941,3.218,155.38,155.34,4.30027959]
[1729129948146,1.451,155.43,155.34,26.52027959]
[1729129948345,1.451,155.43,155.37,3.2182]
[1729129948639,3.2174,155.41,155.34,26.52027959]
[1729129949445,3.2174,155.41,155.36,3.2183]
[1729129950338,3.218,155.38,155.34,6.39177959]
[1729129950646,3.218,155.38,155.33,13.91]
[1729129950842,3.2196,155.31,155.16,6.28]
[1729129951046,6.28,155.33,155.25,16.6333]
[1729129951246,13.91,155.32,155.25,5.99129768]
[1729129951449,3.2197,155.3,155.25,5.99129768]
[1729129951648,13.91,155.32,155.25,5.99129768]
[1729129951944,6.28,155.33,155.25,5.99129768]
[1729129952250,3.2199,155.29,155.25,5.99129768]
[1729129952646,22.26,155.35,155.25,5.99129768]
[1729129952948,6.28,155.34,155.26,1.4108]
[1729129953949,22.26,155.33,155.26,1.4108]
[1729129954750,3.2203,155.28,155.26,1.4108]
[1729129954946,22.26,155.33,155.2,28.54]
[1729129954947,6.28,155.3,155.2,28.54]
[1729129955151,6.28,155.3,155.23,3.23842211]
[1729129955350,3.2207,155.26,155.23,3.23842211]
[1729129955844,3.2201,155.28,155.23,3.23842211]
[1729129956044,6.28,155.3,155.21,2.7911]
[1729129956245,6.28,155.3,155.21,6.06592335]
[1729129956555,3.2201,155.28,155.23,3.2211]
[1729129957144,3.2204,155.27,155.22,4.6447]
[1729129957543,6.28,155.3,155.22,1.4234]
[1729129958146,6.28,155.3,155.21,6.06592335]
[1729129958944,6.28,155.3,155.22,1.3868]
[1729129959155,22.26,155.33,155.22,1.3868]
[1729129959457,6.28,155.32,155.24,22.26]
[1729129959951,22.26,155.36,155.24,22.26]
[1729129960140,6.28,155.35,155.24,22.26]
[1729129960541,3.2199,155.29,155.25,3.2207]
[1729129960954,6.28,155.31,155.25,3.2207]
[1729129961252,6.28,155.31,155.23,3.2211]
[1729129962246,6.28,155.31,155.22,4.6081]
[1729129962548,28.54,155.31,155.22,1.3868]
[1729129962754,3.2203,155.28,155.22,1.3868]
[1729129962951,3.2203,155.28,155.23,3.221]
[1729129964351,3.2203,155.27,155.23,3.221]
[1729129964945,3.2201,155.28,155.24,3.2209]
[1729129965341,6.28,155.29,155.24,3.2209]
[1729129965747,9.5,155.29,155.22,1.3868]
[1729129965943,22.26,155.33,155.24,3.2209]
[1729129966251,6.2,155.32,155.22,29.8468]
[1729129966445,6.2,155.32,155.25,3.2207]
[1729129966650,6.2,155.32,155.22,29.8468]
[1729129966953,6.2,155.32,155.24,3.2209]
[1729129967746,3.2202,155.28,155.22,29.8468]
[1729129967950,6.2,155.32,155.22,7.5868]
[1729129968251,3.2205,155.26,155.22,7.5868]
[1729129968649,3.2205,155.26,155.22,4.608]
[1729129969258,3.2205,155.26,155.23,3.221]
[1729129969460,6.2,155.32,155.22,1.3868]
[1729129970054,3.2203,155.27,155.22,1.3868]
[1729129970555,3.2203,155.27,155.24,3.2208]
[1729129970955,3.2202,155.28,155.24,3.2208]
[1729129973860,6.2,155.32,155.26,3.2205]
[1729129974153,22.26,155.33,155.26,3.2205]
[1729129974358,6.2,155.32,155.26,3.2205]
[1729129974756,3.2201,155.29,155.26,3.2205]
[1729129975460,3.2201,155.29,155.22,1.3868]
[1729129975461,3.2195,155.31,155.28,3.22]
[1729129975754,3.2195,155.31,155.23,28.46]
[1729129975959,6.2,155.34,155.25,13.91]
[1729129976256,3.2197,155.31,155.27,3.2202]
[1729129976662,3.2197,155.31,155.25,13.91]
[1729129977460,3.2197,155.31,155.27,3.2201]
[1729129977661,3.2197,155.31,155.25,13.91]
[1729129977962,3.2194,155.32,155.27,13.91]
[1729129978149,6.2,155.35,155.29,13.91]
[1729129978355,6.2,155.35,155.3,1.356]
[1729129978558,3.2192,155.33,155.3,4.5757]
[1729129979354,6.2,155.35,155.3,1.356]
[1729129980058,3.2194,155.32,155.3,1.356]
[1729129980259,6.2,155.35,155.3,1.356]
[1729129980560,6.2,155.35,155.29,3.20096618]
[1729129980561,3.2196,155.31,155.29,3.20096618]
[1729129980764,20.11,155.35,155.25,13.91]
[1729129980963,13.91,155.33,155.24,1.3638]
[1729129981461,6.2,155.35,155.26,3.2204]
[1729129981758,1.3583,155.38,155.28,13.91]
[1729129981759,6.2,155.34,155.28,13.91]
[1729129982057,6.2,155.35,155.28,13.91]
[1729129982463,3.2195,155.31,155.28,13.91]
[1729129983167,3.2191,155.33,155.29,3.2199]
[1729129983364,3.2191,155.33,155.29,6.39694208]
[1729129985364,69.48,155.39,155.32,13.91]
[1729129985553,6.2,155.38,155.32,13.91]
[1729129986165,69.48,155.39,155.32,17.11766136]
[1729129986360,6.2,155.39,155.32,17.11766136]
[1729129986561,3.2181,155.38,155.34,17.1287]
[1729129986866,6.2,155.39,155.32,13.91]
[1729129987167,6.2,155.39,155.31,1.375]
[1729129987663,13.91,155.37,155.3,3.1844781]
[1729129987864,3.2192,155.33,155.28,17.1301]
[1729129988062,3.2192,155.33,155.28,17.07226081]
[1729129988463,6.2,155.35,155.28,17.07226081]
[1729129988863,3.2191,155.33,155.3,3.2196]
[1729129989063,3.2191,155.33,155.28,17.07226081]
[1729129989768,3.2191,155.33,155.29,3.2198]
[1729129989963,6.2,155.35,155.3,13.91]
[1729129990169,1.4375,155.43,155.32,13.91]
[1729129990170,6.2,155.38,155.32,13.91]
[1729129990362,6.2,155.38,155.33,3.219]
[1729129990867,13.91,155.41,155.32,13.91]
[1729129991064,6.2,155.4,155.34,13.91]
[1729129991568,15.3475,155.43,155.34,13.91]
[1729129991759,6.2,155.41,155.34,13.91]
[1729129992361,3.2178,155.39,155.35,3.2185]
[1729129992570,6.2,155.41,155.34,13.91]
[1729129992966,3.2176,155.41,155.35,3.2185]
[1729129993162,1.3908,155.44,155.35,13.91]
[1729129993364,20.11,155.45,155.37,13.91]
[1729129993365,6.2,155.45,155.37,13.91]
[1729129993564,6.2,155.45,155.36,1.4463]
[1729129993565,6.2,155.46,155.4,13.91]
[1729129993766,6.2,155.46,155.4,17.15181001]
[1729129995072,9.4164,155.46,155.42,3.2171]
[1729129995369,3.2164,155.46,155.42,3.2171]
[1729129995665,6.2,155.48,155.41,3.2174]
[1729129996169,6.2,155.48,155.4,17.15181001]
[1729129996572,3.2169,155.44,155.4,17.15181001]
[1729129997266,3.2169,155.44,155.4,20.36931001]
[1729129998076,3.2165,155.46,155.42,13.91]
[1729129998473,5.96,155.47,155.4,3.24181001]
[1729129998778,5.96,155.46,155.38,17.1279]
[1729129998980,5.96,155.46,155.38,20.34797744]
[1729129999278,3.2171,155.43,155.38,20.34797744]
[1729129999471,5.96,155.46,155.38,20.34797744]
[1729129999777,3.2173,155.42,155.38,20.34807744]
[1729130000476,3.2171,155.43,155.39,3.2177]
[1729130000874,5.96,155.46,155.4,13.91]
[1729130001071,3.217,155.44,155.4,17.1275]
[1729130001274,5.96,155.46,155.4,17.1275]
[1729130001670,5.96,155.46,155.4,13.91]